Cogmind - Beta 15 @@@ ROGUE MODE // 2025.05.14 @ 22:43:45 Player: amhuman Result: Destroyed by S-10 Pest with Light Assault Rifle Performance ------------- Evolutions (0) 0 Regions Visited (3) 600 Robots Destroyed (21) 105 Value Destroyed (540) 540 Prototype IDs (0) 0 Alien Tech Used (0) 0 Bonus (0) 0 TOTAL SCORE: 1245 Bonus ------- None Cogmind --------- Core Integrity 0/250 Matter 242/300 Energy 87/100 System Corruption 0% Temperature Cool (0) Movement Walking (190) Ox1 Location -10/Subcaves Parts ------- > --- POWER (1) -------- (None) > --- PROPULSION (2) --- Improved Aluminum Leg > --- UTILITY (2) ------ Small Storage Unit Improved Terrain Scanner > --- WEAPON (2) ------- Subdweller Beam Cannon Rocket Launcher > --- INVENTORY (8) ---- Faulty Experimental Sensor Array Particle Gun Light EM Pulse Cannon Beam Cannon Beam Cannon Beam Cannon Grenade Launcher Plasma Flamer Peak State ------------ > --- POWER ------------ Light Nuclear Core > --- PROPULSION ------- Improved Aluminum Leg Improved Aluminum Leg > --- UTILITY ---------- Small Storage Unit Improved Terrain Scanner > --- WEAPON ----------- Beam Cannon Beam Cannon > --- INVENTORY -------- Improved Aluminum Leg Experimental Sensor Array Light EM Pulse Cannon Beam Cannon Grenade Launcher Rocket Launcher Plasma Flamer [Rating: 15] Favorites ----------- Power Ion Engine Engine Ion Engine Power Core Light Nuclear Core Propulsion Improved Aluminum Leg Leg Improved Aluminum Leg Utility Small Storage Unit Device Improved Terrain Scanner Storage Small Storage Unit Weapon Beam Cannon Energy Gun Small Laser Energy Cannon Beam Cannon Ballistic Gun Assault Rifle Launcher Rocket Launcher Build | -11 -10 -10 -10 ------- Run | Yrd Mat Min Sub Slots Evolved . | . . . . Power . | . . . . Propulsion . | . . . . Utility . | . . . . Weapon . | . . . . Parts Attached 19 | 6 8 3 2 Power 3 | 1 1 1 . Engine 2 | 1 1 . . Core 1 | . . 1 . Reactor . | . . . . Propulsion 6 | 2 3 1 . Treads . | . . . . Leg 6 | 2 3 1 . Wheel . | . . . . Hover . | . . . . Flight . | . . . . Utility 3 | 1 2 . . Device 2 | . 2 . . Storage 1 | 1 . . . Processor . | . . . . Hackware . | . . . . Protection . | . . . . Artifact . | . . . . Weapon 7 | 2 2 1 2 Energy Gun 1 | 1 . . . Energy Cannon 3 | . 2 . 1 Ballistic Gun 2 | 1 . 1 . Ballistic Cannon . | . . . . Launcher 1 | . . . 1 Special Weapon . | . . . . Impact Weapon . | . . . . Slashing Weapon . | . . . . Piercing Weapon . | . . . . Special Melee Weapon . | . . . . Unidentified Prototypes . | . . . . Parts Lost 5 | . 2 1 2 Power 3 | . 1 1 1 Propulsion 2 | . 1 . 1 Utility . | . . . . Weapon . | . . . . Highest Loss Streak 2 | . 2 1 1 To Critical Strikes . | . . . . Average Backups 7 | . 6 7 7 Power . | . . . . Propulsion . | . 2 1 . Utility . | . . 1 1 Weapon 5 | . 3 4 6 Tool/Special . | . . . . Unused Backups 13 | . 4 3 6 Power . | . . . . Propulsion 2 | . 1 1 . Utility 3 | . 1 1 1 Weapon 8 | . 2 1 5 Tool/Special . | . . . . Average Slot Usage (%) 91 | . 97 99 75 Engine 8 | . 13 11 . Core 1 | . . 2 . Leg 24 | . 28 28 17 Device 13 | . 12 14 14 Storage 14 | . 14 14 14 Energy Gun 2 | . 10 . . Energy Cannon 17 | . 7 26 12 Ballistic Gun 4 | . 10 1 5 Launcher 3 | . . . 10 Peak Build Rating 15 | 6 12 15 15 Average Rating 11 | 4 11 13 11 On Entrance 8 | . 6 12 15 Naked Turns . | . . . . Heaviest Build 21 | 11 21 17 18 Greatest Support 26 | 20 26 26 26 Greatest Overweight (x) 1 | 1 . 1 1 Average Overweight (x) . | . . . . Largest Inventory Capacity 8 | 8 8 8 8 Average Capacity 7 | 7 8 8 8 Most Carried 8 | 1 8 8 8 Average Carried 7 | . 6 7 7 Final Capacity 8 | 8 8 8 8 Final Carried 8 | 1 8 7 8 Class Distribution -------------------- 100% | Mutant Dominant Class ---------------- Mutant | -10/Materials Mutant | -10/Mines Mutant | -10/Subcaves Resources | -11 -10 -10 -10 ----------- Run | Yrd Mat Min Sub Matter Collected 371 | 189 61 30 91 Remotely . | . . . . Salvage Created 504 | . 156 76 272 Parts 27 | . 9 6 12 Haulers Intercepted 1 | . 1 . . Recyclers Shooed . | . . . . Parts Field Recycled 6 | . 6 . . Retrieved Matter 51 | . 51 . . Parts Self-Destructed 9 | . . . 9 Prevented . | . . . . Kills | -11 -10 -10 -10 ------- Run | Yrd Mat Min Sub Combat Hostiles Destroyed 20 | . 4 5 11 Melee 1 | . 1 . . Guns 3 | . 2 . 1 Cannons 9 | . 1 5 3 AOE 7 | . . . 7 Classes Destroyed 4 | . 2 1 1 Hauler 1 | . 1 . . Swarmer 8 | . . 5 3 Grunt 8 | . 4 . 4 Subdweller 4 | . . . 4 Best Kill Streak 3 | . 3 3 3 Combat Bots Only 3 | . 3 3 3 Max Kills in Single Turn 2 | . 1 1 2 Gunslinging . | . . . . Exploded 2 | . . . 2 Melee 1 | . 1 . . Uniques/NPCs Destroyed . | . . . . Combat | -11 -10 -10 -10 -------- Run | Yrd Mat Min Sub Hostile Shots Fired 139 | . 37 52 50 Missed 36 | . 10 17 9 Hits 103 | . 27 35 41 Projectile 103 | . 27 35 41 Damage Taken 1107 | . 299 274 534 Core 258 | . 45 42 171 Absorbed by Shields . | . . . . Core Remaining (%) 100 | 100 . . . Volleys Fired 47 | . 9 14 24 Largest 2 | . 2 2 2 Hottest 120 | . 120 120 113 Shots Fired 92 | . 18 28 46 Gun 32 | . 16 . 16 Cannon 49 | . 2 28 19 Launcher 11 | . . . 11 Special . | . . . . Kinetic 24 | . 8 . 16 Thermal 57 | . 10 28 19 Explosive 11 | . . . 11 Electromagnetic . | . . . . Robot Hit Streak 19 | . 5 2 19 Robot Miss Streak 6 | . 3 6 2 Penetration Max . | . . . . Secondary Targets . | . . . . Shots Hit Robots 49 | . 12 6 31 Core Hits 32 | . 9 5 18 Critical Kills . | . . . . Critical Parts Destroyed . | . . . . Critical Strikes . | . . . . Melee Attacks . | . . . . Impact . | . . . . Slashing . | . . . . Piercing . | . . . . Sneak Attacks . | . . . . Combat Hostiles . | . . . . Follow-up Attacks . | . . . . Damage Inflicted 1308 | . 192 121 995 Guns 177 | . 107 . 70 Cannons 380 | . 36 121 223 Explosions 702 | . . . 702 Melee . | . . . . Ramming 49 | . 49 . . Kinetic 124 | . 54 . 70 Thermal 433 | . 89 121 223 Explosive 702 | . . . 702 Electromagnetic . | . . . . Impact . | . . . . Slashing . | . . . . Piercing . | . . . . Highest Corruption . | . . . . Average Corruption . | . . . . Corruption Purged . | . . . . Corruption Blocked . | . . . . Overload Shots . | . . . . Overflow Damage 30 | . . . 30 Projectiles . | . . . . Explosions 30 | . . . 30 Melee . | . . . . Knockbacks 1 | . 1 . . Impact 1 | . 1 . . Kinetic . | . . . . Secondary . | . . . . Self-Inflicted Damage . | . . . . Shots . | . . . . Rammed . | . . . . Targets Rammed 23 | . 23 . . Kicked 23 | . 23 . . Crushed . | . . . . Highest Temperature 398 | . 60 398 13 Average Temperature 146 | . 17 195 4 Received Heat Transfer 378 | . 162 . 216 Effects 3 | . . 3 . Shutdowns 1 | . . 1 . Short Circuit 1 | . . 1 . Damage (minor) 1 | . . 1 . Siege Activations . | . . . . Martial Activations . | . . . . Shielding Activations . | . . . . Robots Disrupted . | . . . . Combat Hostiles . | . . . . Robots Corrupted . | . . . . Combat Hostiles . | . . . . Parts Fried . | . . . . Impact Corruptions . | . . . . Robots Melted . | . . . . Combat Hostiles . | . . . . Parts Melted 2 | . 1 1 . Heat Transferred 865 | . 199 259 407 Parts Sabotaged . | . . . . Parts Stolen . | . . . . Parts Stripped . | . . . . Power Chain Reactions . | . . . . Alert | -11 -10 -10 -10 ------- Run | Yrd Mat Min Sub Maximum Alert Level . | . . . . Low Security (%) 100 | 100 100 100 . Level 1 . | . . . . Level 2 . | . . . . Level 3 . | . . . . Level 4 . | . . . . Level 5 . | . . . . High Security . | . . . . Max Security . | . . . . Peak Influence 70 | . 70 70 . Initial . | . . . . Average 10 | . 15 8 . Influence Increases 451 | . 121 110 220 Destroy 0b10 Robot/C 320 | . 80 100 140 Destroy 0b10 Robot/NC 5 | . 5 . . Destroy Leader 52 | . 22 10 20 Successful Hack 14 | . 14 . . Lose Combat Pursuer 60 | . . . 60 Influence Decreases 339 | . 121 80 138 Entered New Map 16 | . . . 16 Time Decay 313 | . 121 80 112 Lost Part 10 | . . . 10 Squads Dispatched 3 | . 3 . . Investigation 2 | . 2 . . Extermination . | . . . . Reinforcement 1 | . 1 . . Assault . | . . . . Garrison . | . . . . Intercept . | . . . . Searches Triggered . | . . . . Construction Impeded . | . . . . Haulers Reinforced . | . . . . Active Scanning Responses . | . . . . Cargo Convoy Interrupts . | . . . . Stealth | -11 -10 -10 -10 --------- Run | Yrd Mat Min Sub Distress Signals 1 | . 1 . . Communications Jammed . | . . . . Distress Signals . | . . . . Times Spotted 28 | . 6 6 16 Peak Tracking Total 4 | . 4 3 4 Tactical Retreats 1 | . . . 1 Traps | -11 -10 -10 -10 ------- Run | Yrd Mat Min Sub Traps Triggered 1 | . 1 . . Indirectly . | . . . . Trap Hack Attempts . | . . . . Triggered . | . . . . Disarmed . | . . . . Reprogrammed . | . . . . Reused . | . . . . Traps Extracted . | . . . . Installed . | . . . . Triggered . | . . . . Machines | -11 -10 -10 -10 ---------- Run | Yrd Mat Min Sub Machines Disabled 2 | . . . 2 Max in Single Turn 2 | . . . 2 Machines Repaired . | . . . . Machines Dismantled . | . . . . Machines Sabotaged . | . . . . Overloaded Fab Kills . | . . . . Hacking | -11 -10 -10 -10 --------- Run | Yrd Mat Min Sub Machines Accessed 3 | . 3 . . Terminals 3 | . 3 . . Fabricators . | . . . . Repair Stations . | . . . . Recycling Units . | . . . . Scanalyzers . | . . . . Garrison Access . | . . . . Total Hacks 5 | . 5 . . Successful 1 | . 1 . . Failed 4 | . 4 . . Catastrophic 3 | . 3 . . Database Lockouts . | . . . . Manual 5 | . 5 . . Terminals 5 | . 5 . . Fabricators . | . . . . Repair Stations . | . . . . Recycling Units . | . . . . Scanalyzers . | . . . . Garrison Access . | . . . . Terminal Hacks . | . . . . Fabricator Hacks . | . . . . Repair Station Hacks . | . . . . Recycling Unit Hacks . | . . . . Scanalyzer . | . . . . Garrison Access Hacks . | . . . . Unauthorized Hacks 1 | . 1 . . Terminals 1 | . 1 . . Botnet 1 | . 1 . . Fabricators . | . . . . Repair Stations . | . . . . Recycling Units . | . . . . Scanalyzers . | . . . . Garrison Access . | . . . . Data Cores Recovered . | . . . . Used . | . . . . Hacking Detections 3 | . 3 . . Full Trace Events . | . . . . Feedback Events . | . . . . Feedback Blocked . | . . . . Robot Schematics Acquired . | . . . . Robots Built . | . . . . Authchips . | . . . . Time . | . . . . Total Robot Build Rating . | . . . . Part Schematics Acquired . | . . . . Parts Built . | . . . . Authchips . | . . . . Time . | . . . . Total Part Build Rating . | . . . . Parts Repaired . | . . . . Time . | . . . . Parts Recycled . | . . . . Recycled Matter . | . . . . Retrieved Matter . | . . . . Retrieved Components . | . . . . Parts Scanalyzed . | . . . . Part Schematics Acquired . | . . . . Parts Damaged . | . . . . Bothacking | -11 -10 -10 -10 ------------ Run | Yrd Mat Min Sub Used RIF Installer . | . . . . Robots Hacked . | . . . . Non-combat . | . . . . Combat . | . . . . Robot Hacks Applied . | . . . . Relay Couplers Released . | . . . . Fabnet Peak Effective % . | . . . . Robots Rewired . | . . . . Allies Hacked . | . . . . Hacks Repelled . | . . . . Allies | -11 -10 -10 -10 -------- Run | Yrd Mat Min Sub Total Allies . | . . . . Largest Group . | . . . . Highest-Rated Group . | . . . . Highest-Rated Ally . | . . . . Total Orders . | . . . . Ally Attacks . | . . . . Total Damage . | . . . . Kills . | . . . . Allies Corrupted . | . . . . Allies Melted . | . . . . Intel | -11 -10 -10 -10 ------- Run | Yrd Mat Min Sub Active Infowar (turns) 1448 | . 184 735 529 Terrain 1448 | . 184 735 529 Robot Analysis Total . | . . . . Derelict Logs Recovered 2 | . . 1 1 Drone Launches . | . . . . Drone Recoveries . | . . . . Exploration | -11 -10 -10 -10 ------------- Run | Yrd Mat Min Sub Turns Passed 1709 | 75 370 735 529 Spaces Moved 1078 | 51 232 510 285 Core 4 | 4 . . . Treads . | . . . . Legs 1074 | 47 232 510 285 Wheels . | . . . . Hover . | . . . . Flight . | . . . . Fastest Speed 50 | 50 120 120 120 Average Speed 131 | 128 120 120 160 Slowest Speed 190 | 190 120 190 190 Overloaded Moves . | . . . . Propulsion Burnouts . | . . . . Robots Hopped . | . . . . Potential Cave-ins . | . . . . Cave-ins Triggered . | . . . . Exploration Rate (%) 41 | 3 45 93 25 Regions Visited 3 Branch Regions 2 Pre-discovered Areas . | . . . . Known Exits Taken . | . . . . Unknown Exits Taken 3 | 1 1 1 . Scrap Searched 1 | . . 1 . Spaces Dug . | . . . . Terrain Destroyed 69 | . . . 69 Melee . | . . . . Projectile 1 | . . . 1 AOE 68 | . . . 68 Terrain Rammed . | . . . . Walls Destroyed . | . . . . Machines Disabled . | . . . . Actions | -11 -10 -10 -10 --------- Run | Yrd Mat Min Sub Total 1277 | 57 302 605 313 Wait 79 | . 10 69 . Move 1075 | 50 231 509 285 Hop . | . . . . Pick Up 19 | 1 12 5 1 Fast Attach 12 | 6 5 . 1 Attach 2 | . 1 1 . Detach . | . . . . Swap 5 | . 2 2 1 Drop 15 | . 9 5 1 Fire 47 | . 9 14 24 Melee . | . . . . Ram . | . . . . Kick 23 | . 23 . . Crush . | . . . . Escape Stasis . | . . . . Rewire . | . . . . Trap . | . . . . Miscellaneous . | . . . . Route ------- -11/Scrapyard -10/Materials -10/Mines (discovered 4 exits: [*Mat x2] / Exi / [*Sub]) -10/Subcaves (discovered 1 exit: [*Mat]) History --------- Turn | Location | Event 6 | -11/Scrapyard | Discovered new exit (range 16) 76 | -11/Scrapyard | Entered Materials 312 | -10/Materials | Build established: Mutant 404 | -10/Materials | Discovered new exit (range 16) 446 | -10/Materials | Entered Mines 470 | -10/Mines | Identified exit to Exiles 544 | -10/Mines | A weapon hastily lodged in a ceiling crevice suddenly fell to the ground 586 | -10/Mines | Found a damaged Exp. Sensor Array with a note attached 589 | -10/Mines | Found Prototype Device 597 | -10/Mines | YI-UF0 nonchalantly dropped a Grenade Launcher on the ground 604 | -10/Mines | Received a Rocket Launcher from a helpful Derelict 694 | -10/Mines | Discovered new exit (range 13) 780 | -10/Mines | Found a Scrap Suit stashed away for nefarious purposes 1106 | -10/Mines | Discovered new exit (range 15) 1165 | -10/Mines | Discovered new exit (range 5) 1181 | -10/Mines | Entered Subcaves 1182 | -10/Subcaves | Approached by a straggling Scientist 1203 | -10/Subcaves | Core integrity fell below 50% 1326 | -10/Subcaves | Discovered new exit (range 15) 1402 | -10/Subcaves | Core integrity fell below 20% 1484 | -10/Subcaves | Learned 2 Materials zone layouts 1710 | -10/Subcaves | Destroyed by S-10 Pest with Light Assault Rifle Last Messages --------------- 01373_ Acquired Sub. Beam Cannon. 01375_ Acquired 18 matter. 01384_ LV-AFV(R) destroyed. 01386_ The unstable cave ceiling collapses. 01401_ Acquired 2 matter. 01405_ G-34 Mercenary destroyed. 01408_ G-47 Trooper destroyed. 01421_ Acquired 22 matter. 01430_ The unstable cave ceiling collapses. 01484_ Acquired derelict log, extracted data. Data stored: Materials zone layouts (x2). 01695_ S-10 Pest springs to life. 01699_ S-10 Pest destroyed. 01699_ Machine disabled. 01699_ Destroyed Flight Unit. 01699_ S-10 Pest destroyed. 01699_ Machine disabled. 01702_ S-10 Pest destroyed. 01703_ Flight Unit fries itself beyond repair. 01704_ The unstable cave ceiling collapses. Map ----- +----------------------------------------------------+ | ?????????????????????????????????????????????????? | | ?????????????????????????????????????????????#???? | | ???????????????????????????????????????????????#?? | | ??????????????????????????????????????#??????????? | | ???????????????????????????????????##????????????? | | ??????????????????????????????????????????#??????? | | ?????????????????????????????????????????????????? | | ?????????????????????????????????????????????????? | | ???????????????????????????????#????###??##??????? | | ???????????????????????????????????????????#??###? | | ?????????????????????????????????#???????????## ## | | ???????????????????????????????????#????????## | | ??????????????????????????????????????#?????# | | ???????????????????????????????????????????## | | ???????????????#????????????#????????????### | | ??????????????????#?????#?#???????#??##### | | ???????????????????#?????????????#?### | | ???????????????????????????????????# | | ??????????????????#????????###?????# | | ?????????????????????????### ##????#### | | ?????????????????????#???# #####???## | | ????????????????????????## ##???### | | ?????????????????######## ###??### | | ?????????????????# ###??# # | | ?????????????????### ## # # ##?## #### | | ???????????? ??????# @ ####### ### #### | | ???????????????????## ###???### ## | | ???????????? ???????## ##???#???## | | ?????????????????????#s #??#??????## | | ????????????????????# #?#??#???### ######## | | ???????????????????# # ????#???# #??????? | | ???????????????????# " ?????## #?#???? | | ???????????????????# ???### ?????? | | ????????????????? ? ?????# #?#??? | | ???????????#?????? %= ""???? ##???#? | | ????????????????? ??#? ##?????# | | ?????????????????# # ""???# #??????? | | ?????????????????## ### %* "???# ??????? | | ??????????????????# #?? [ ????# ??????? | | ??????????????????# ?? # =% "????# ??? ??? | | ?????????????????? " ???# ?#????## ??????? | | ??????????????????# ####???????????????# #???? ? | | ??????????????????###???????????????????? #?????? | | ????????????????????????????????????????? ??????? | | ?????????????????????????????????????????????????? | | ?????????????????????????????????????????????????? | | ?????????????????????????????????????????????????? | | ?????????????????????????????????????????????????? | | ?????????????????????????????????????????????????? | | ?????????????????????????????????????????????????? | +----------------------------------------------------+ Best States ------------- Heat Dissipation 25 Energy Generation 14 Energy Capacity 250 Matter Stores 300 Matter Capacity 300 Sight Range 16 Terrain Scan Range 16 Terrain Scan Density 10 Evasion (%) 55 Item Schematics ----------------- None Robot Schematics ------------------ None Fabricated ------------ Nothing Repaired ---------- Nothing Alien Tech Used ----------------- None Achievements -------------- None Challenges ------------ None Game ------ Seed SurgeTeslaTether Manual? 0 Play Time 00:16:46 Cumulative 194.9 hours Start 2025.05.14 @ 22:22:09 End 2025.05.14 @ 22:43:45 Sessions 1 Manual Loads 0 Difficulty Rogue Special Mode None Game No. 191 Rogue 191 Adventurer 0 Explorer 0 Win Type - Total 1 Types 1/0/0/0/0/0/0/0/0/0 Lore% 69 Gallery% 55 Achievement% 48 Wizard Run 0 Options --------- Layout 1 ASCII 0 Keyboard 0 Movement Mouse Keybinds 0 Fullscreen 1 Font 24/Smallcaps Map View 50x35 Zoom Use 0% Tactical HUD 1 Map Filters NONE Filters NONE Steam 1 RUN: d6c0c85e-8a65-4740-b8af-a5ec1e350a0b